bitfinex/quotes_SOLUSD_20250317
["timestamp","ask_amount","ask_price","bid_price","bid_amount"]
[1742229103196,23.00079848,128.31,128.26,15.20679848]
[1742229103396,23.00079848,128.31,128.25,23.00399848]
[1742229104385,15.20679848,128.3,128.24,168.16449848]
[1742229104586,33.85644734,128.29,128.24,30.06449848]
[1742229104792,15.20679848,128.3,128.25,15.20679848]
[1742229105292,15.20679848,128.28,128.23,23.00499848]
[1742229105592,15.20679848,128.28,128.24,7.06]
[1742229105973,15.20679848,128.29,128.24,7.06]
[1742229106279,15.20679848,128.28,128.24,7.06]
[1742229106704,15.20679848,128.27,128.24,7.06]
[1742229107300,16.86179848,128.27,128.22,152.9589]
[1742229107599,15.20679848,128.24,128.19,352.1407]
[1742229107771,15.20679848,128.23,128.18,14.8612]
[1742229108100,15.20679848,128.22,128.17,168.16859848]
[1742229108279,15.20679848,128.21,128.17,7.8018]
[1742229108484,15.20679848,128.2,128.16,145.9023]
[1742229108793,15.20679848,128.21,128.16,161.10909848]
[1742229109107,16.86179848,128.22,128.17,15.20679848]
[1742229109283,1.655,128.22,128.18,15.20679848]
[1742229109473,33.64991043,128.24,128.19,15.20679848]
[1742229109474,33.99860891,128.24,128.19,15.20679848]
[1742229109903,15.20679848,128.23,128.18,22.26679848]
[1742229110401,15.20679848,128.23,128.19,7.8009]
[1742229110701,15.20679848,128.22,128.18,14.8613]
[1742229110997,15.20679848,128.21,128.18,7.06]
[1742229111293,0.28432314,128.23,128.18,7.06]
[1742229111592,15.20679848,128.21,128.18,7.06]
[1742229111794,15.20679848,128.2,128.18,7.06]
[1742229112104,15.20679848,128.2,128.15,22.26679848]
[1742229112285,15.20679848,128.21,128.16,23.00929848]
[1742229112676,15.20679848,128.21,128.15,7.06]
[1742229112677,15.20679848,128.2,128.15,7.06]
[1742229112896,15.20679848,128.19,128.15,14.8631]
[1742229113401,15.20679848,128.2,128.15,14.8631]
[1742229113790,15.20679848,128.2,128.18,0.063]
[1742229114189,15.20679848,128.19,128.18,0.063]
[1742229115081,35.40714734,128.19,128.18,0.063]
[1742229115392,43.49237048,128.19,128.18,0.063]
[1742229115591,43.77669362,128.19,128.18,0.063]
[1742229115778,20.14216157,128.15,128.12,0.063]
[1742229115973,15.20679848,128.14,128.12,7.8681]
[1742229116181,33.85644734,128.18,128.13,15.20679848]
[1742229116381,18.64964886,128.18,128.13,15.20679848]
[1742229117100,18.64964886,128.18,128.14,7.8039]
[1742229117286,16.75749848,128.19,128.14,23.01069848]
[1742229117486,16.75749848,128.19,128.14,42.52059848]
[1742229117686,6.4124,128.21,128.15,15.20679848]
[1742229119698,15.20679848,128.2,128.17,7.8021]
[1742229120077,15.20679848,128.2,128.16,14.8626]
[1742229120278,15.20679848,128.19,128.16,14.8626]
[1742229120595,15.20679848,128.18,128.16,7.06]
[1742229121401,15.20679848,128.18,128.15,7.8032]
[1742229121801,33.99860891,128.16,128.12,0.063]
[1742229122095,15.20679848,128.15,128.12,7.8679]
[1742229122309,18.64964886,128.18,128.12,23.07469848]
[1742229122473,15.20679848,128.17,128.12,23.07469848]
[1742229122680,15.20679848,128.17,128.12,42.58759848]
[1742229123403,15.20679848,128.16,128.12,27.3808]
[1742229123992,15.20679848,128.16,128.12,7.8679]
[1742229124385,15.20679848,128.17,128.12,42.58759848]
[1742229125198,18.64964886,128.18,128.12,42.58759848]
[1742229125199,18.64964886,128.18,128.13,15.20679848]
[1742229125501,15.20679848,128.17,128.14,7.8039]
[1742229125905,15.20679848,128.16,128.14,7.8039]
[1742229126284,15.20679848,128.16,128.13,7.8043]
[1742229126485,15.20679848,128.15,128.12,0.063]
[1742229126785,33.99860891,128.13,128.12,0.063]
[1742229127617,48.37549362,128.13,128.12,0.063]
[1742229127824,49.89939362,128.13,128.12,0.063]
[1742229128515,15.20679848,128.09,128.08,0.063]
[1742229128695,33.85644734,128.09,128.08,0.063]
[1742229129598,42.23209362,128.09,128.08,0.063]
[1742229129787,34.42509362,128.09,128.08,0.063]
[1742229131319,42.23209362,128.09,128.08,0.063]
[1742229131690,35.49112162,128.06,128.05,0.063]
[1742229132798,54.42509362,128.06,128.05,0.063]
[1742229133713,62.23389362,128.06,128.05,0.063]
[1742229134099,68.51569362,128.06,128.05,0.063]
[1742229134423,68.51569362,128.06,127.99,7.8758]
[1742229134424,20.0,128.02,127.99,0.063]
[1742229134625,33.85644734,128.0,127.99,0.063]
[1742229134924,34.14077048,128.0,127.99,0.063]
[1742229136516,41.50509362,128.0,127.99,0.063]
[1742229137525,49.31759362,128.0,127.99,0.063]
[1742229138730,49.31759362,128.0,127.98,0.03]
[1742229138731,18.933972,127.99,127.98,0.03]
[1742229138922,40.69619362,127.99,127.98,0.03]
[1742229140707,34.42509362,127.99,127.98,0.03]
[1742229142126,34.14077048,127.99,127.98,0.03]
[1742229143322,33.85644734,127.99,127.98,0.03]
[1742229144040,15.20679848,127.99,127.98,0.03]
[1742229145025,15.49112162,127.99,127.98,0.03]
[1742229146702,42.23819362,127.99,127.98,0.03]
[1742229147138,34.42509362,127.99,127.98,0.03]
[1742229147327,42.23819362,127.99,127.98,0.03]
[1742229148645,34.42509362,127.99,127.98,0.03]
[1742229148835,42.23819362,127.99,127.98,0.03]
[1742229149433,20.0,127.95,127.92,7.8173]
[1742229149626,15.20679848,127.94,127.92,7.8173]
[1742229149826,15.20679848,127.93,127.91,6.506]
[1742229150034,15.20679848,127.92,127.91,7.8478]
[1742229150328,15.20679848,127.93,127.91,7.8478]
[1742229150542,34.42509362,127.92,127.91,0.03]
[1742229151727,34.14077048,127.92,127.91,0.03]
[1742229154136,41.95807048,127.92,127.91,0.03]
[1742229155042,34.14077048,127.92,127.91,0.03]
[1742229155238,15.20679848,127.93,127.91,0.03]
[1742229155441,15.20679848,127.94,127.91,0.03]
[1742229156323,15.20679848,127.93,127.91,0.03]
[1742229157746,33.85644734,127.92,127.91,0.03]
[1742229158428,34.14077048,127.92,127.91,0.03]
[1742229159742,0.14216157,127.95,127.91,0.03]
[1742229160033,34.14077048,127.92,127.91,0.03]
[1742229160219,41.50509362,127.92,127.91,0.03]
[1742229161042,18.64964886,127.88,127.86,0.063]
[1742229161213,15.20679848,127.87,127.86,0.063]
[1742229161833,15.20679848,127.88,127.86,0.063]
[1742229162014,15.20679848,127.89,127.86,0.063]
[1742229162730,15.20679848,127.88,127.86,0.063]
[1742229163943,15.20679848,127.89,127.86,0.063]
[1742229164318,15.20679848,127.87,127.86,0.063]
[1742229164525,15.20679848,127.88,127.86,0.063]
[1742229165230,15.20679848,127.89,127.86,0.063]
[1742229165528,15.20679848,127.88,127.86,0.063]
[1742229165729,15.20679848,127.87,127.86,0.063]
[1742229167247,33.85644734,127.87,127.86,0.063]
[1742229167833,34.14077048,127.87,127.86,0.063]
[1742229170839,41.96117048,127.87,127.86,0.063]
[1742229171251,34.14077048,127.87,127.86,0.063]
[1742229175440,41.96117048,127.87,127.86,0.063]
[1742229175923,34.14077048,127.87,127.86,0.063]
[1742229177230,42.24549362,127.87,127.86,0.063]
[1742229179452,18.933972,127.86,127.85,0.063]
[1742229179752,34.14077048,127.86,127.85,0.063]
[1742229180252,41.96177048,127.86,127.85,0.063]
[1742229180463,20.0,127.8,127.79,1.3780661]
[1742229180754,33.85644734,127.8,127.79,1.3780661]
[1742229181442,34.14077048,127.8,127.79,1.3780661]
[1742229181960,15.20679848,127.82,127.79,1.3780661]
[1742229182144,20.0,127.8,127.79,1.3780661]
[1742229182754,20.0,127.8,127.79,9.2033661]
[1742229183051,20.0,127.8,127.79,1.3780661]
[1742229183247,20.0,127.8,127.79,9.2033661]
[1742229185231,18.64964886,127.82,127.79,9.2033661]
[1742229186160,15.20679848,127.81,127.79,9.2033661]
[1742229186449,33.85644734,127.82,127.79,9.2033661]
[1742229186647,33.85644734,127.82,127.79,43.97346458]
[1742229186648,20.0,127.82,127.79,43.97346458]
[1742229186853,20.0,127.82,127.8,23.19699848]
[1742229187153,20.0,127.81,127.8,7.9902]
[1742229188042,20.0,127.81,127.8,1.6187]
[1742229188566,20.0,127.81,127.79,9.2033661]
[1742229189552,20.0,127.82,127.79,9.2033661]
[1742229189930,20.0,127.82,127.79,24.41016458]
[1742229190554,20.0,127.82,127.79,43.97346458]
[1742229191250,18.64964886,127.85,127.8,15.20679848]
[1742229191443,15.20679848,127.86,127.81,15.20679848]
[1742229191755,38.64964886,127.78,127.77,0.03]
[1742229191955,53.85644734,127.78,127.77,0.03]
[1742229192334,54.14077048,127.78,127.77,0.03]
[1742229192534,61.96667048,127.78,127.77,0.03]
[1742229193237,62.25099362,127.78,127.77,0.03]
[1742229194936,66.16900013,127.78,127.77,0.03]
[1742229196654,33.85644734,127.75,127.73,0.03]
[1742229196855,41.68414734,127.75,127.73,0.03]
[1742229197750,34.14077048,127.75,127.73,0.03]
[1742229200262,22.28679848,127.76,127.73,0.03]
[1742229200646,7.08,127.76,127.73,0.03]
[1742229201671,22.28679848,127.76,127.73,0.03]
[1742229202352,7.08,127.76,127.73,0.03]
[1742229202548,20.0,127.75,127.73,0.03]
[1742229202956,20.0,127.75,127.73,7.859]
[1742229204171,0.14216157,127.8,127.74,15.23679848]
[1742229204345,18.64964886,127.79,127.74,15.23679848]
[1742229204549,18.64964886,127.79,127.75,15.20679848]
[1742229204968,20.0,127.77,127.76,7.8271]
[1742229205349,0.28432314,127.81,127.77,1.6277]
[1742229205544,35.20679848,127.79,127.77,1.6277]
[1742229205752,15.20679848,127.8,127.77,1.6277]
[1742229206183,15.34896005,127.81,127.77,1.6277]
[1742229206366,20.0,127.79,127.77,1.6277]
[1742229207258,20.0,127.79,127.78,7.8259]
[1742229208367,40.93644734,127.82,127.78,7.8259]
[1742229208694,22.28679848,127.82,127.78,7.8259]
[1742229209058,15.20679848,127.82,127.78,7.8259]
[1742229209465,15.20679848,127.82,127.78,27.3907]
[1742229210180,0.063,127.82,127.78,42.59749848]
[1742229210359,20.0,127.81,127.78,42.59749848]
[1742229211081,20.0,127.81,127.78,27.3907]
[1742229211581,20.0,127.81,127.77,1.6277]
[1742229211975,20.0,127.81,127.77,16.83449848]
[1742229213680,0.063,127.82,127.79,15.20679848]
[1742229214187,20.0,127.77,127.74,0.03]
[1742229215782,20.0,127.75,127.74,0.03]
[1742229216080,49.34756896,127.75,127.74,0.03]
[1742229217180,34.14077048,127.75,127.74,0.03]
[1742229218175,41.96847048,127.75,127.74,0.03]
[1742229219181,57.17526896,127.75,127.74,0.03]
[1742229219484,41.96847048,127.75,127.74,0.03]
[1742229219778,57.4595921,127.75,127.74,0.03]
[1742229219995,20.0,127.71,127.66,0.03]
[1742229220167,18.933972,127.7,127.66,0.03]
[1742229220362,15.20679848,127.69,127.66,0.03]
[1742229220574,33.85644734,127.7,127.66,0.03]
[1742229220774,15.20679848,127.69,127.66,0.03]
[1742229220975,17.80423906,127.69,127.66,0.03]
[1742229221182,17.80423906,127.68,127.66,0.03]
[1742229221582,17.80423906,127.69,127.66,0.03]
[1742229222567,17.80423906,127.69,127.67,0.03]
[1742229222780,37.80423906,127.68,127.67,0.03]
[1742229222988,56.45388792,127.68,127.67,0.03]
[1742229224588,37.80423906,127.68,127.67,0.03]
[1742229224967,20.0,127.68,127.67,0.03]
[1742229225186,56.45388792,127.68,127.67,0.03]
[1742229225367,56.73821106,127.68,127.67,0.03]
[1742229225569,82.37445012,127.68,127.67,0.03]
[1742229225885,18.64964886,127.63,127.61,0.03]
[1742229226081,36.45388792,127.63,127.61,0.03]
[1742229226391,18.0885622,127.62,127.61,0.03]
[1742229227074,36.45388792,127.63,127.61,0.03]
[1742229227468,18.64964886,127.63,127.61,0.03]
[1742229227989,37.80423906,127.64,127.61,0.03]
[1742229229192,89.6328,127.67,127.61,0.03]
[1742229229193,81.8,127.67,127.61,0.03]
[1742229229369,37.80423906,127.66,127.61,17.83423906]
[1742229229690,17.80423906,127.65,127.61,0.03]
[1742229230265,17.80423906,127.63,127.61,0.03]
[1742229231490,18.64964886,127.63,127.61,0.03]
[1742229231668,17.80423906,127.65,127.61,0.03]
[1742229231986,7.1,127.67,127.61,0.03]
[1742229231987,36.45388792,127.66,127.61,17.83423906]
[1742229233191,17.80423906,127.65,127.62,7.8357]
[1742229233585,36.45388792,127.66,127.62,7.8357]
[1742229235876,18.64964886,127.66,127.62,7.8357]
[1742229236078,36.45388792,127.66,127.62,27.4251]
[1742229236295,37.80423906,127.68,127.63,17.80423906]
[1742229236510,17.80423906,127.67,127.62,51.51293906]
[1742229236675,37.80423906,127.66,127.62,33.7087]
[1742229237008,37.80423906,127.66,127.62,14.1193]
[1742229239471,17.80423906,127.63,127.61,7.8661]
[1742229239676,17.80423906,127.63,127.61,0.03]
[1742229240499,17.80423906,127.63,127.61,7.8662]
[1742229240815,17.80423906,127.63,127.61,0.03]
[1742229241594,17.80423906,127.63,127.61,7.8662]
[1742229241803,17.80423906,127.63,127.61,0.03]
[1742229241972,17.80423906,127.64,127.61,0.03]
[1742229242178,17.80423906,127.62,127.61,0.03]
[1742229244001,36.45388792,127.62,127.61,0.03]
[1742229244196,44.57391106,127.62,127.61,0.03]
[1742229244583,36.73821106,127.62,127.61,0.03]
[1742229244901,20.0,127.62,127.61,0.03]
[1742229245109,17.80423906,127.63,127.61,0.03]
[1742229245987,37.80423906,127.62,127.61,0.03]
[1742229246302,56.59604949,127.62,127.61,0.03]
[1742229246802,36.59604949,127.62,127.61,0.03]
[1742229247985,20.0,127.62,127.61,0.03]
[1742229249103,25.74964886,127.64,127.6,17.80423906]
[1742229249104,7.1,127.64,127.6,17.80423906]
[1742229249493,17.94640063,127.65,127.6,17.80423906]
[1742229249801,17.94640063,127.65,127.58,29.0086]
[1742229249802,17.80423906,127.62,127.58,9.4131]
[1742229250011,17.80423906,127.61,127.58,9.4131]
[1742229252005,17.80423906,127.59,127.56,7.8394]
[1742229252405,17.80423906,127.6,127.56,7.8394]
[1742229253404,17.80423906,127.59,127.55,16.0141]
[1742229253602,17.80423906,127.58,127.55,8.1743]
[1742229253789,17.80423906,127.57,127.55,1.5802]
[1742229254296,17.80423906,127.56,127.54,2.8298066]
[1742229254505,36.73821106,127.57,127.54,10.6702066]
[1742229255002,17.80423906,127.57,127.54,2.8298066]
[1742229255310,24.90423906,127.58,127.54,10.6702066]
[1742229255702,17.80423906,127.57,127.54,10.6702066]
[1742229256093,24.90423906,127.58,127.54,10.6702066]
[1742229256299,17.80423906,127.57,127.54,10.6702066]
[1742229258000,17.80423906,127.57,127.55,0.03]
[1742229258202,24.90423906,127.58,127.55,0.03]
[1742229259107,17.80423906,127.57,127.55,0.03]
[1742229259702,7.1,127.58,127.55,0.03]
[1742229259906,17.80423906,127.57,127.55,0.03]
[1742229260407,7.1,127.58,127.55,0.03]
[1742229260722,24.90423906,127.58,127.55,0.03]
[1742229261509,18.933972,127.59,127.55,0.03]
[1742229261815,17.80423906,127.58,127.55,0.03]
[1742229264516,17.80423906,127.56,127.55,0.03]
[1742229264704,43.83821106,127.56,127.55,0.03]
[1742229266727,36.73821106,127.56,127.55,0.03]
[1742229266912,43.83821106,127.56,127.55,0.03]
[1742229267529,51.67761106,127.56,127.55,0.03]
[1742229267899,51.7177514,127.56,127.55,0.03]
[1742229268310,51.57558983,127.56,127.55,0.03]
[1742229268525,52.00207454,127.56,127.55,0.03]
[1742229272339,52.00560426,127.56,127.55,0.03]
[1742229275141,45.5802786,127.56,127.55,0.03]
[1742229277037,20.0,127.52,127.48,0.03]
[1742229277218,11.42258346,127.49,127.48,0.03]
[1742229278935,19.26628346,127.49,127.48,0.03]
[1742229279246,11.42258346,127.49,127.48,0.03]
[1742229282246,18.52258346,127.51,127.48,0.03]
[1742229282440,11.42258346,127.5,127.48,0.03]
[1742229284442,11.42258346,127.51,127.48,0.03]
[1742229284746,57.31439389,127.52,127.48,0.03]
[1742229285325,31.42258346,127.52,127.48,0.03]
[1742229285739,18.52258346,127.53,127.48,11.45258346]
[1742229285939,11.42258346,127.53,127.49,7.8437]
[1742229286537,11.42258346,127.52,127.49,7.8437]
[1742229286925,11.42258346,127.53,127.49,7.8437]
[1742229288927,11.42258346,127.52,127.48,7.8741]
[1742229290428,11.42258346,127.53,127.48,19.29668346]
[1742229290624,37.17223232,127.54,127.49,11.42258346]
[1742229291645,37.17223232,127.54,127.5,7.8431]
[1742229292026,11.42258346,127.52,127.49,7.8434]
[1742229292551,11.42258346,127.53,127.49,7.8434]
[1742229292931,25.74964886,127.54,127.49,7.8434]
[1742229293129,11.42258346,127.53,127.49,7.8434]
[1742229295430,37.31439389,127.5,127.49,0.03]
[1742229295651,45.15749389,127.5,127.49,0.03]
[1742229296034,45.29965546,127.5,127.49,0.03]
[1742229297557,37.45655546,127.5,127.49,0.03]
[1742229298438,37.31439389,127.5,127.49,0.03]
[1742229298638,45.5839786,127.5,127.49,0.03]
[1742229300535,7.1,127.5,127.49,0.03]
[1742229300939,7.1,127.52,127.49,0.03]
[1742229301347,18.52258346,127.52,127.49,0.03]
[1742229301836,26.36458346,127.52,127.49,0.03]
[1742229302046,11.42258346,127.51,127.49,0.03]
[1742229302238,30.21439389,127.5,127.49,0.03]
[1742229303360,36.65039093,127.5,127.49,0.03]
[1742229304055,20.0,127.5,127.49,0.03]
[1742229304260,7.1,127.52,127.49,0.03]
[1742229304454,18.79181043,127.54,127.5,17.8585805]
[1742229304761,8.28468661,127.56,127.52,17.8585805]
[1742229304762,18.79181043,127.56,127.52,17.8585805]
[1742229305149,0.14216157,127.56,127.52,17.8585805]
[1742229305350,17.8585805,127.57,127.52,17.8585805]
[1742229305548,0.063,127.54,127.51,17.8585805]
[1742229305758,0.063,127.54,127.52,17.8585805]
[1742229306159,0.063,127.54,127.51,7.8425]
[1742229306344,0.063,127.54,127.51,25.7010805]
[1742229306743,0.063,127.54,127.52,17.8585805]
[1742229307375,0.063,127.54,127.51,165.5488]
[1742229307661,0.063,127.54,127.52,17.8585805]
[1742229308764,0.063,127.54,127.53,7.8412]
[1742229309763,0.063,127.54,127.52,25.7001805]
[1742229310459,0.063,127.54,127.53,17.8585805]
[1742229310970,0.063,127.54,127.53,25.6997805]
[1742229311668,17.4215805,127.58,127.53,25.6997805]
[1742229311962,0.063,127.59,127.56,17.8585805]
[1742229312561,0.063,127.59,127.57,17.8585805]
[1742229312740,0.063,127.59,127.56,17.8585805]
[1742229312947,0.063,127.59,127.55,34.3078805]
[1742229313162,17.8585805,127.58,127.55,1.5095]
[1742229313363,17.8585805,127.57,127.53,7.8411]
[1742229313751,17.8585805,127.57,127.52,32.8002805]
[1742229314851,17.8585805,127.58,127.53,17.8585805]
[1742229315171,25.0215805,127.59,127.54,17.8585805]
[1742229315471,25.0215805,127.59,127.52,14.9417]
[1742229315472,0.063,127.59,127.56,17.8585805]
[1742229316949,0.063,127.59,127.57,7.8388]
[1742229317655,0.063,127.59,127.57,171.6889805]
[1742229318871,0.063,127.59,127.58,17.8585805]
[1742229319645,0.063,127.59,127.57,171.6889805]
[1742229321356,36.07122936,127.63,127.58,17.8585805]
[1742229322469,17.8585805,127.62,127.57,15.7304]
[1742229322656,17.8585805,127.61,127.57,33.5889805]
[1742229322851,17.8585805,127.59,127.55,17.8585805]
[1742229323066,37.8585805,127.58,127.54,16.0613]
[1742229323653,20.0,127.58,127.54,33.9198805]
[1742229323860,20.0,127.58,127.54,16.0613]
[1742229324059,20.0,127.58,127.53,138.1]
[1742229324060,17.8585805,127.56,127.51,33.9216805]
[1742229324267,17.8585805,127.56,127.51,172.0216805]
[1742229325353,20.0,127.57,127.53,17.8585805]
[1742229325553,20.0,127.56,127.54,17.8585805]
[1742229326574,20.0,127.56,127.53,17.8585805]
[1742229327576,20.0,127.56,127.53,25.6991805]
[1742229328282,45.6974805,127.57,127.53,17.8585805]
[1742229328459,45.6974805,127.57,127.52,7.8416]
[1742229328871,17.8585805,127.56,127.51,172.0216805]
[1742229329477,17.8585805,127.56,127.51,172.0516805]
[1742229330290,37.8585805,127.54,127.51,0.03]
[1742229330490,20.0,127.54,127.51,17.8885805]
[1742229330790,20.0,127.54,127.51,0.03]
[1742229330955,20.0,127.54,127.51,17.8885805]
[1742229331157,20.0,127.54,127.51,25.7308805]
[1742229331378,43.73039093,127.57,127.52,17.8585805]
[1742229331765,51.56919093,127.57,127.52,17.8585805]
[1742229332160,24.9385805,127.57,127.52,25.7001805]
[1742229332366,7.08,127.57,127.53,17.8585805]
[1742229334182,17.8585805,127.58,127.54,7.8406]
[1742229334887,17.8585805,127.58,127.53,17.8585805]
[1742229335674,25.14374207,127.59,127.53,17.8585805]
[1742229336187,25.14374207,127.59,127.54,7.8406]
[1742229337091,17.8585805,127.58,127.54,7.8406]
[1742229337282,17.8585805,127.58,127.53,25.6996805]
[1742229337483,17.8585805,127.58,127.53,7.8411]
[1742229337690,17.8585805,127.58,127.53,25.6996805]
[1742229341776,17.8585805,127.57,127.53,7.8411]
[1742229341971,17.8585805,127.58,127.53,25.6996805]
[1742229342173,17.8585805,127.58,127.53,7.8411]
[1742229342393,17.8585805,127.58,127.53,25.6996805]
[1742229342574,0.063,127.59,127.55,17.8585805]
[1742229342897,0.063,127.59,127.56,17.8585805]
[1742229343474,0.063,127.59,127.57,17.8585805]
[1742229343973,0.063,127.59,127.55,7.08]
[1742229344183,25.7592805,127.59,127.55,7.08]
[1742229344378,25.7592805,127.59,127.54,163.7988805]
[1742229344578,25.7592805,127.59,127.54,25.6988805]
[1742229345498,17.8585805,127.58,127.54,7.8403]
[1742229346497,20.0,127.57,127.54,25.6988805]
[1742229348402,20.0,127.57,127.54,7.8403]
[1742229352004,20.0,127.57,127.54,19.25535342]
[1742229352304,20.0,127.57,127.54,7.8403]
[1742229353580,0.063,127.59,127.54,19.25535342]
[1742229354281,0.063,127.59,127.54,38.85695342]
[1742229355099,0.063,127.59,127.55,11.41505342]
[1742229355490,20.0,127.58,127.55,11.41505342]
[1742229355885,20.0,127.58,127.56,11.41505342]
[1742229356200,0.063,127.59,127.57,11.41505342]
[1742229356393,0.063,127.59,127.58,11.41505342]
[1742229356778,0.063,127.59,127.58,19.25325342]
[1742229356977,1.6577,127.63,127.58,19.25325342]
[1742229356978,0.063,127.63,127.58,157.63757656]
[1742229357186,0.063,127.63,127.61,11.41505342]
[1742229357508,0.063,127.63,127.6,11.41505342]
[1742229358205,0.063,127.63,127.61,11.41505342]
[1742229358383,0.063,127.63,127.6,11.41505342]
[1742229358819,0.063,127.63,127.6,7.8365]
[1742229358985,0.063,127.63,127.59,157.35235342]
[1742229359185,0.063,127.63,127.6,11.41505342]
[1742229360305,0.063,127.63,127.59,145.9373]
[1742229360481,0.063,127.63,127.59,157.35235342]
[1742229361282,0.063,127.63,127.6,11.41505342]
[1742229361486,0.063,127.63,127.59,157.35235342]
[1742229362691,0.063,127.63,127.6,11.41505342]
[1742229363187,0.063,127.63,127.61,11.41505342]
[1742229363387,0.063,127.63,127.62,11.41505342]
[1742229364813,0.063,127.63,127.62,19.25075342]
[1742229365306,0.063,127.63,127.62,7.8357]
[1742229365509,0.063,127.63,127.62,19.25075342]
[1742229366190,0.063,127.63,127.61,11.41505342]
[1742229367208,0.063,127.63,127.62,17.81094419]
[1742229368713,0.063,127.63,127.61,25.64674419]
[1742229369084,0.063,127.63,127.61,7.8358]
[1742229369303,0.063,127.63,127.61,25.64674419]
[1742229369505,0.063,127.63,127.62,17.81094419]
[1742229371015,0.063,127.63,127.62,25.64664419]
[1742229371800,0.063,127.63,127.62,164.03096733]
[1742229372005,0.063,127.63,127.62,165.69036733]
[1742229374605,0.063,127.63,127.62,172.13589047]
[1742229376815,0.063,127.63,127.62,171.56724419]
[1742229376998,0.063,127.63,127.59,138.1]
[1742229377203,0.063,127.63,127.6,25.64784419]
[1742229377424,0.063,127.63,127.61,17.81094419]
[1742229378122,0.063,127.63,127.6,25.64784419]
[1742229378306,0.063,127.63,127.61,17.81094419]
[1742229378716,0.063,127.63,127.62,17.81094419]
[1742229378894,0.063,127.63,127.61,17.81094419]
[1742229379312,0.063,127.63,127.62,7.8357]
[1742229379492,0.063,127.63,127.59,138.13]
[1742229379696,0.063,127.63,127.6,25.64784419]
[1742229380098,0.063,127.63,127.61,17.81094419]
[1742229380708,0.063,127.63,127.62,17.81094419]
[1742229381420,0.063,127.63,127.62,25.64664419]
[1742229382820,0.063,127.63,127.62,25.93096733]
[1742229383417,0.063,127.63,127.62,7.8357]
[1742229383721,0.063,127.63,127.62,25.64664419]
[1742229386220,0.063,127.63,127.62,25.93096733]
[1742229386409,0.063,127.66,127.65,17.81094419]
[1742229387216,0.063,127.66,127.65,11.39336883]
[1742229387625,0.063,127.66,127.65,19.22726883]
[1742229387806,0.063,127.66,127.65,19.51159197]
[1742229388322,0.063,127.66,127.65,157.61159197]
[1742229388514,0.0001,127.66,127.65,157.89591511]
[1742229388722,0.0001,127.67,127.66,0.56864628]
[1742229388924,0.0001,127.67,127.66,11.96201511]
[1742229389107,0.0001,127.67,127.66,18.3591515]
[1742229389421,0.063,127.72,127.68,0.42648471]
[1742229389627,0.063,127.72,127.71,17.79050522]
[1742229389820,0.063,127.72,127.71,25.62070522]
[1742229390133,0.063,127.72,127.71,25.90502836]
[1742229390309,0.0001,127.72,127.71,26.1893515]
[1742229390619,0.0001,127.72,127.71,25.90502836]
[1742229391503,0.0001,127.72,127.71,27.47042663]
[1742229391702,0.0001,127.72,127.71,25.90502836]
[1742229392605,0.0001,127.72,127.71,17.79050522]
[1742229393730,0.0001,127.72,127.71,25.62070522]
[1742229396541,0.0001,127.72,127.71,7.8302]
[1742229396828,0.0001,127.72,127.71,25.62070522]
[1742229397219,0.0001,127.72,127.69,18.07482836]
[1742229397609,0.0001,127.72,127.69,17.79050522]
[1742229398411,0.0001,127.72,127.71,17.79050522]
[1742229399809,0.0001,127.72,127.7,17.79050522]
[1742229401438,0.0001,127.72,127.71,17.79050522]
[1742229403116,0.0001,127.72,127.71,25.62070522]
[1742229404232,0.0001,127.72,127.71,164.00492836]
[1742229405018,0.0001,127.72,127.71,163.72060522]
[1742229405219,0.0001,127.72,127.71,155.89040522]
[1742229405419,0.0001,127.72,127.71,163.72060522]
[1742229405840,0.0001,127.72,127.71,155.89040522]
[1742229407142,0.0001,127.72,127.71,163.72060522]